bitfinex/quotes_ETHUSD_20250123
["timestamp","ask_amount","ask_price","bid_price","bid_amount"]
[1737666629070,1.54122,3244.2,3243.5,3.0]
[1737666629243,1.54101,3244.7,3243.7,3.08282]
[1737666629565,1.54136,3243.9,3243.4,0.8101]
[1737666629767,1.5414,3243.8,3243.4,0.8101]
[1737666629973,1.54131,3244.0,3243.4,0.8101]
[1737666630191,1.54143,3243.8,3243.4,0.8101]
[1737666630349,1.54143,3243.8,3243.0,3.89365]
[1737666630678,1.40298608,3244.8,3243.2,3.55]
[1737666630879,1.40298608,3244.8,3243.2,0.55]
[1737666630880,1.54135,3243.9,3243.2,0.55]
[1737666631051,1.54135,3243.9,3243.0,1.254465]
[1737666631251,1.23323,3243.6,3243.0,0.8101]
[1737666631892,1.23301,3244.1,3243.4,3.0]
[1737666632091,1.23293,3244.3,3243.6,3.0]
[1737666632384,0.7714,3244.8,3243.4,3.08316]
[1737666632586,1.2329,3244.4,3243.4,6.08315]
[1737666632750,1.2329,3244.4,3243.8,3.0]
[1737666632949,1.23296,3244.3,3243.9,0.05638704]
[1737666633149,1.23296,3244.3,3243.6,3.0]
[1737666633150,1.23294,3244.3,3243.6,3.0]
[1737666633349,1.23295,3244.3,3243.7,0.05650882]
[1737666633949,1.23285,3244.5,3243.8,3.08279]
[1737666634149,2.23575445,3244.9,3244.0,3.7655]
[1737666634386,1.23261,3245.2,3244.1,0.60565145]
[1737666634588,1.23251,3245.4,3244.7,3.0]
[1737666634891,1.23258,3245.3,3244.6,3.0]
[1737666635202,1.23261,3245.2,3244.7,0.05538142]
[1737666636000,1.3656279,3245.9,3244.7,0.05538142]
[1737666636207,1.23243,3245.7,3244.8,3.0]
[1737666636356,0.7597,3245.9,3245.0,3.0]
[1737666636561,0.7597,3245.9,3245.1,0.05475886]
[1737666636562,1.23247,3245.5,3245.1,0.05475886]
[1737666636762,1.23233,3245.9,3245.3,3.0]
[1737666637000,1.2323,3246.0,3245.4,0.05383036]
[1737666637172,1.23217,3246.3,3245.4,0.05383036]
[1737666637377,2.46468,3245.9,3245.2,3.08146]
[1737666637585,2.46468,3245.9,3245.5,0.05367234]
[1737666637586,1.23233,3245.9,3245.5,0.05367234]
[1737666637791,1.23233,3245.9,3245.2,3.825616]
[1737666638083,0.61212792,3246.3,3245.6,0.05361153]
[1737666638287,1.23226,3246.1,3245.2,3.744156]
[1737666638484,1.23226,3246.1,3245.7,0.05355073]
[1737666638684,0.61212792,3246.3,3245.4,3.08128]
[1737666638909,1.23222,3246.2,3245.8,0.0533328]
[1737666639202,1.23241,3245.7,3245.1,0.55]
[1737666639401,1.23241,3245.7,3245.1,3.55]
[1737666639604,1.23244,3245.6,3245.0,0.8101]
[1737666639763,1.23248,3245.5,3245.0,0.8101]
[1737666640098,1.23241,3245.7,3245.0,3.8101]
[1737666640283,1.23247,3245.6,3245.0,0.8101]
[1737666640861,1.23239,3245.8,3245.0,0.8101]
[1737666641197,1.23246,3245.6,3245.1,0.05376579]
[1737666641441,0.246485,3245.6,3245.1,0.05376579]
[1737666641603,1.23296,3244.3,3243.8,0.771]
[1737666641917,1.23277,3244.7,3243.4,0.771]
[1737666642060,0.7556,3244.9,3242.9,3.96648458]
[1737666642265,1.23309,3243.9,3243.3,3.0]
[1737666642493,1.23298,3244.2,3243.3,0.608329]
[1737666642801,1.23285,3244.5,3243.8,3.0]
[1737666643004,0.7556,3244.9,3243.1,0.8101]
[1737666643300,1.23313,3243.8,3243.1,3.89353]
[1737666643506,1.23304,3244.0,3243.2,6.63334]
[1737666643664,1.23304,3244.0,3243.1,3.89353]
[1737666643665,1.2329,3244.4,3243.7,3.0]
[1737666643998,1.23282,3244.6,3244.0,3.0]
[1737666644363,1.23272,3244.9,3244.3,3.0]
[1737666644599,1.73214,3246.4,3244.5,3.08206]
[1737666644600,0.8144,3245.3,3244.5,3.08206]
[1737666644764,1.23245,3245.6,3244.9,3.0]
[1737666644984,1.23251,3245.5,3244.9,3.0]
[1737666645196,0.8144,3245.8,3244.9,0.3]
[1737666645197,1.2324,3245.7,3244.9,0.3]
[1737666645386,1.2324,3245.7,3245.0,3.0]
[1737666645586,2.04676,3245.8,3245.0,3.0]
[1737666646097,1.23246,3245.6,3245.0,3.08164]
[1737666646311,1.23223,3246.2,3245.3,3.55]
[1737666646312,1.23232,3245.9,3245.3,3.55]
[1737666646711,1.23226,3246.1,3245.3,3.63129]
[1737666647018,1.23229,3246.0,3245.4,0.363129]
[1737666647210,1.23229,3246.0,3245.0,0.797]
[1737666647211,1.23242,3245.7,3245.0,0.797]
[1737666647407,1.23232,3246.0,3245.3,3.08129]
[1737666647579,1.23232,3246.0,3245.3,3.0]
[1737666647784,1.232,3246.8,3245.3,3.0]
[1737666647785,0.7913,3246.8,3246.1,3.08061]
[1737666647980,1.232,3246.8,3246.1,0.308061]
[1737666648179,1.3958928,3247.0,3246.3,3.0]
[1737666648488,1.3958928,3247.0,3246.3,3.08041]
[1737666648489,0.1639828,3247.0,3246.3,3.08041]
[1737666648806,1.23197,3246.9,3246.2,0.55]
[1737666649013,0.1639828,3247.0,3246.0,3.0]
[1737666649221,0.1639828,3247.0,3245.9,3.08078]
[1737666649222,1.23214,3246.4,3246.3,0.04773498]
[1737666649400,1.23214,3246.4,3245.8,3.0]
[1737666649597,1.23205,3246.7,3246.3,0.04773498]
[1737666649810,1.23205,3246.7,3245.8,0.67118539]
[1737666650125,0.1639828,3247.0,3246.4,0.04786534]
[1737666650333,1.3958928,3247.0,3246.4,3.0]
[1737666650484,0.1639828,3247.0,3246.5,0.04738453]
[1737666651001,0.1639828,3247.0,3246.7,3.0]
[1737666651202,1.3958928,3247.0,3246.6,0.0473274]
[1737666651386,1.23195,3246.9,3246.3,0.797]
[1737666651585,1.23195,3246.9,3246.7,0.04762001]
[1737666651786,1.23195,3246.9,3246.0,3.08069]
[1737666651787,1.23206,3246.6,3245.8,3.87785]
[1737666651984,1.23198,3246.8,3246.0,3.0807]
[1737666652190,1.3958928,3247.0,3246.3,3.0]
[1737666652500,1.23198,3246.8,3246.2,3.0805]
[1737666652808,1.23198,3246.8,3246.3,3.0]
[1737666653009,0.1639828,3247.0,3246.1,3.0]
[1737666653181,0.1639828,3247.0,3244.9,2.15507444]
[1737666653182,1.23229,3246.0,3245.1,3.08155]
[1737666653386,0.7539,3246.6,3244.4,0.7608]
[1737666653626,1.23209,3246.5,3244.6,0.29788]
[1737666653948,1.23239,3245.8,3245.1,3.08156]
[1737666654223,1.23223,3246.2,3245.1,0.55]
[1737666654424,1.23225,3246.1,3245.5,0.55]
[1737666654724,0.7539,3246.6,3245.2,0.7608]
[1737666654928,1.23232,3246.0,3245.3,3.0]
[1737666655221,1.23232,3246.0,3245.4,0.55]
[1737666655429,0.49899984,3247.0,3245.0,3.08164]
[1737666655430,1.23244,3245.6,3245.0,3.08164]
[1737666655637,1.23244,3245.6,3245.0,3.0]
[1737666655785,1.23236,3245.8,3245.1,3.63156]
[1737666655985,1.23229,3246.0,3245.2,3.0]
[1737666656191,1.23243,3245.7,3245.2,0.0464508]
[1737666656532,1.23194,3246.9,3244.6,0.92531479]
[1737666656533,1.23209,3246.5,3244.6,0.92531479]
[1737666656702,2.47240173,3246.9,3245.3,0.04643373]
[1737666657030,1.23254,3245.4,3244.7,3.0]
[1737666657204,1.23254,3245.4,3244.8,1.00073148]
[1737666657532,1.23245,3245.6,3244.9,0.55]
[1737666657833,1.23234,3245.9,3245.1,6.08155]
[1737666658042,1.23241,3245.7,3245.1,3.0]
[1737666658347,1.23234,3245.9,3245.2,0.55]
[1737666658648,1.23234,3245.9,3245.3,0.440426]
[1737666659290,0.7645,3246.2,3245.1,0.7727]
[1737666659489,1.23266,3245.1,3244.6,1.10158]
[1737666660253,0.8118,3245.1,3243.9,0.7897]
[1737666660453,3.28420173,3245.1,3243.3,0.7897]
[1737666660666,1.23298,3244.2,3243.3,0.7897]
[1737666660814,0.63115738,3245.0,3243.3,3.7897]
[1737666661019,0.92453,3244.9,3243.9,3.0]
[1737666661234,0.8118,3245.1,3244.2,3.0]
[1737666661527,0.8012,3245.6,3244.7,0.55]
[1737666661741,0.92421,3246.0,3244.4,0.55]
[1737666661920,0.92421,3246.0,3245.2,0.55]
[1737666662115,0.8012,3246.2,3245.1,3.0]
[1737666662457,0.92431,3245.7,3245.1,0.3]
[1737666662754,0.8012,3246.2,3244.3,0.7671]
[1737666662913,0.9246,3244.7,3244.3,0.7671]
[1737666663114,0.92452,3244.9,3243.8,3.84983]
[1737666663319,0.92464,3244.5,3244.4,0.04734444]
[1737666663535,0.92473,3244.2,3243.4,3.19548458]
[1737666663853,0.8012,3245.1,3244.0,3.19548458]
[1737666664017,0.8012,3245.1,3244.1,3.0]
[1737666665262,0.8012,3245.1,3244.2,0.55]
[1737666665420,0.7515,3246.1,3244.9,3.0]
[1737666665927,0.7515,3246.1,3245.1,3.0]
[1737666666132,0.7515,3246.1,3245.2,0.608163]
[1737666666340,0.7515,3246.1,3245.2,1.398063]
[1737666666542,0.7515,3246.1,3245.2,0.608163]
[1737666666753,0.7515,3246.1,3244.9,3.0]
[1737666666960,0.7515,3246.1,3244.8,0.7899]
[1737666667362,0.7515,3246.1,3244.4,3.8178]
[1737666667660,0.7515,3246.1,3243.6,0.15703792]
[1737666667661,0.7515,3246.1,3244.0,0.8178]
[1737666667857,0.7634,3246.0,3244.4,3.19548458]
[1737666668153,0.61233483,3245.9,3244.4,3.51503304]
[1737666668361,0.61233483,3245.9,3244.5,3.0]
[1737666668857,0.61233483,3245.9,3244.4,3.19548458]
[1737666668858,2.47240173,3245.2,3244.4,3.19548458]
[1737666669063,2.47240173,3245.2,3243.7,3.19548458]
[1737666669259,2.47240173,3244.8,3243.7,3.19548458]
[1737666669460,0.24724017,3245.1,3243.8,3.0]
[1737666669626,2.47240173,3246.0,3243.8,3.83]
[1737666669961,0.60691049,3245.3,3243.8,6.08276]
[1737666670169,2.47240173,3246.0,3243.9,0.55]
[1737666670459,2.47240173,3246.0,3243.8,0.55]
[1737666670664,0.62108776,3245.4,3243.8,3.0]
[1737666670967,0.62108776,3245.4,3243.8,3.61954846]
[1737666671263,0.8259,3245.3,3243.9,0.04882813]
[1737666671562,0.8259,3245.3,3244.1,3.0]
[1737666671747,0.8259,3245.9,3244.6,3.08196]
[1737666671947,0.8259,3245.9,3244.7,3.55]
[1737666672260,1.43883045,3245.9,3245.0,3.0]
[1737666672464,1.43883045,3245.9,3245.1,0.3]
[1737666672636,1.43883045,3245.9,3245.1,0.04783899]
[1737666672637,0.8259,3245.9,3245.1,0.04783899]
[1737666672837,0.8259,3245.9,3244.7,6.63194]
[1737666673039,0.8259,3245.9,3245.2,0.04777814]
[1737666673335,0.8259,3245.9,3244.7,3.55]
[1737666673534,0.8259,3245.9,3245.3,0.04760243]
[1737666673734,0.8259,3245.9,3244.9,3.08175]
[1737666673735,0.92432,3245.6,3244.9,3.08175]
[1737666673933,0.92432,3245.6,3245.0,3.363175]
[1737666674339,0.92432,3245.6,3245.1,0.04772412]
[1737666674730,0.9243,3245.7,3245.1,0.04772412]
[1737666675151,1.75014,3245.9,3245.1,0.04772412]
[1737666675152,0.92433,3245.6,3245.1,0.04772412]
[1737666675666,0.92436,3245.5,3245.1,0.04772412]
[1737666675863,0.92431,3245.7,3245.1,0.04772412]
[1737666676269,0.92434,3245.6,3245.1,0.04772412]
[1737666676426,0.7554,3246.4,3245.1,0.04772412]
[1737666676633,0.92409,3246.5,3245.2,0.55]
[1737666676867,0.7554,3247.2,3246.2,3.0]
[1737666676868,0.92399,3246.8,3246.2,3.0]
[1737666677084,0.92397,3246.9,3246.3,0.55]
[1737666677367,0.92393,3247.0,3246.3,0.59624379]
[1737666677540,0.9239,3247.1,3246.6,3.0]
[1737666677886,0.924,3246.8,3246.7,0.04660358]
[1737666678170,0.92401,3246.7,3246.0,6.08069]
[1737666678365,0.7554,3247.7,3246.4,0.55]
[1737666678695,0.9242,3246.1,3245.7,0.752]
[1737666679047,0.7554,3246.8,3245.7,0.752]
[1737666679205,0.7554,3246.8,3245.3,6.8333]
[1737666679376,0.7554,3246.8,3245.6,3.0]
[1737666679704,0.92375,3247.6,3245.3,0.752]
[1737666679705,0.7954,3247.2,3245.8,0.55]
[1737666679899,0.7954,3247.2,3246.3,3.55]
[1737666680200,0.7954,3247.2,3245.7,3.08098]
[1737666680379,0.7954,3247.2,3245.5,6.68992251]
[1737666680890,0.7954,3247.2,3245.7,3.0]
[1737666681189,0.7954,3247.2,3246.0,0.55]
[1737666681695,0.7954,3247.2,3245.8,0.663107]
[1737666681993,2.8157086,3247.2,3244.5,6.27754458]
[1737666682199,2.0203086,3246.2,3244.7,0.8209]
[1737666682367,0.7729,3246.1,3244.5,3.19548458]
[1737666682576,0.7729,3245.8,3244.5,3.19548458]
[1737666682758,0.7729,3245.2,3244.5,3.19548458]
[1737666682965,0.7729,3245.0,3244.5,3.19548458]
[1737666684085,0.7729,3245.0,3243.8,2.218]
[1737666684796,0.61652,3244.0,3243.8,2.218]
[1737666685387,0.7729,3245.0,3243.8,5.30073]
[1737666685577,1.38923,3245.0,3244.3,3.0]
[1737666685781,1.38923,3245.0,3244.4,0.3]
[1737666685987,0.61646,3244.3,3243.9,3.0]
[1737666686187,0.7729,3245.0,3243.8,2.218]
[1737666686188,0.61654,3243.9,3243.8,2.218]
[1737666686975,0.61664,3243.4,3242.9,0.7517]
[1737666687178,0.7799,3244.1,3242.9,0.7517]
[1737666687463,0.61662,3243.5,3242.9,3.7517]
[1737666687679,0.61662,3243.5,3243.0,0.683544]
[1737666687878,0.61669,3243.2,3243.0,0.683544]
[1737666688205,3.4167186,3244.1,3242.4,0.7549]
[1737666688368,0.61678,3242.7,3242.3,3.0]
[1737666688569,0.61679,3242.6,3242.0,0.63582942]
[1737666689010,0.61683,3242.4,3241.7,3.08478]
[1737666689296,0.783,3243.2,3242.3,3.0]
[1737666689297,0.61675,3242.8,3242.3,3.0]
[1737666689498,0.61677,3242.7,3242.3,3.0]
[1737666689700,0.61673,3242.9,3242.3,3.61954846]
[1737666689864,0.783,3243.2,3242.5,3.0]
[1737666690060,0.61671,3243.0,3242.3,3.61954846]
[1737666690293,0.783,3243.2,3242.3,3.61954846]
[1737666690500,0.61675,3242.8,3242.3,3.61954846]
[1737666690706,0.783,3243.2,3242.5,3.63397]
[1737666690896,1.39969,3243.2,3242.5,3.63397]
[1737666691094,1.09134,3243.2,3242.5,3.63397]
[1737666691409,0.30837,3242.8,3242.4,0.9899343]
[1737666691573,0.30837,3242.8,3242.3,0.61954846]
[1737666691906,0.30836,3243.0,3242.4,3.0]
[1737666692115,0.30832,3243.3,3242.6,3.0]
[1737666692298,0.3083,3243.5,3242.6,3.08393]
[1737666692498,1.11426,3244.0,3243.1,3.0]
[1737666692675,0.806,3244.0,3243.2,3.08328]
[1737666692875,0.30825,3244.1,3243.5,3.0]
[1737666693093,0.30824,3244.2,3243.3,3.0]
[1737666693295,0.30824,3244.2,3243.6,3.0]
[1737666693489,0.7998,3244.4,3242.9,0.777]
[1737666693691,0.30833,3243.2,3242.5,3.08403]
[1737666693880,0.30835,3243.1,3242.4,0.62540073]
[1737666694079,1.07032,3243.3,3242.3,1.43464846]
[1737666694403,0.762,3244.0,3243.0,3.0]
[1737666694598,0.3083,3243.6,3243.0,3.0]
[1737666694799,0.3083,3243.6,3243.0,3.08356]
[1737666695316,0.30827,3243.9,3243.0,3.08356]
[1737666695613,0.30824,3244.3,3243.4,3.0]
[1737666695815,0.30824,3244.3,3243.5,0.608323]
[1737666696015,0.30821,3244.5,3243.6,35.0]
[1737666696314,0.30824,3244.2,3243.6,35.0]
[1737666696486,0.30828,3243.7,3243.6,35.0]
[1737666696693,0.30828,3243.7,3243.6,3.0]
[1737666697302,1.07027,3243.9,3243.2,3.0]
[1737666697512,1.07027,3243.9,3243.1,3.08346]
[1737666697513,0.30828,3243.8,3243.3,0.608346]
[1737666697678,0.30829,3243.6,3243.1,3.0]
[1737666697905,0.30828,3243.8,3243.1,3.0]
[1737666698139,0.30828,3243.8,3243.0,6.16698]
[1737666698140,0.30829,3243.7,3243.3,3.0]
[1737666699045,0.02,3243.3,3243.2,38.0]
[1737666699334,0.02,3243.3,3243.2,41.63337]
[1737666699521,0.02,3243.3,3243.2,44.18539562]
[1737666699710,0.02,3243.3,3243.2,44.73539562]
[1737666700132,0.02,3243.3,3243.2,41.10202562]
[1737666700823,0.30833,3243.2,3242.2,0.8039]
[1737666701005,0.02,3243.3,3243.2,0.04687029]
[1737666701206,0.02,3243.3,3241.7,0.62163486]
[1737666701427,0.02,3243.3,3241.9,3.0]
[1737666701629,0.02,3243.3,3242.4,3.08412]
[1737666701814,0.02,3243.3,3242.6,0.55]
[1737666702018,0.02,3243.3,3242.9,3.55]
[1737666702230,0.02,3243.3,3243.1,3.0]
[1737666702750,0.02,3243.3,3243.2,0.04494897]
[1737666703246,0.02,3243.3,3243.2,38.04460902]
[1737666703620,0.02,3243.3,3243.2,3.04460902]
[1737666704021,0.815,3243.2,3242.5,35.0]
[1737666705325,0.815,3243.2,3241.6,0.8129]
[1737666705538,0.815,3243.2,3241.7,0.30309]
[1737666705850,0.815,3243.1,3241.8,35.0]
[1737666706416,2.0203086,3243.2,3241.5,2.218]
[1737666706417,0.55,3243.0,3241.5,2.218]
[1737666706616,0.815,3242.9,3241.5,2.218]
[1737666706817,2.8353086,3242.9,3241.6,35.0]
[1737666707013,0.33853086,3242.8,3241.7,3.0]
[1737666707419,1.44249061,3242.9,3241.7,3.0]
[1737666707714,2.0203086,3241.8,3240.4,3.19548458]
[1737666708056,0.815,3241.3,3240.4,3.19548458]
[1737666708762,0.815,3242.2,3240.8,3.0]
[1737666708917,0.815,3242.2,3240.5,3.8129]
[1737666708918,0.815,3242.2,3240.6,0.55]
[1737666709118,0.815,3242.2,3241.0,0.55]
[1737666709447,0.815,3242.2,3241.2,3.0]
[1737666709956,0.815,3242.2,3241.3,0.04327183]
[1737666710254,0.8159,3243.1,3241.5,3.0]
[1737666710461,0.61255581,3243.2,3241.4,1.13492718]
[1737666710462,0.7811,3242.8,3241.4,0.34751992]
[1737666710664,0.7811,3242.8,3241.6,35.0432625]
[1737666710828,0.7811,3242.8,3241.7,3.0]
[1737666711160,0.7811,3242.8,3241.7,3.04338432]
[1737666711370,0.7811,3242.8,3241.8,0.55]
[1737666711524,0.7811,3242.8,3241.7,0.04338432]
[1737666711728,0.7811,3242.8,3241.9,35.04307892]
[1737666711925,0.7853,3242.7,3241.8,0.0431399]
[1737666712163,0.28056086,3242.6,3242.0,0.04314251]
[1737666712335,0.7853,3242.4,3240.4,1.10604846]
[1737666712536,0.7853,3242.4,3240.9,3.0]
[1737666712723,0.62106782,3242.1,3240.9,3.0]
[1737666712927,0.7976,3242.0,3241.0,0.04328159]
[1737666713364,0.7976,3242.0,3240.9,3.0]
[1737666713554,0.7976,3242.0,3241.1,0.04337066]
[1737666713724,0.7976,3242.0,3241.0,0.04343167]
[1737666713930,0.7976,3242.0,3241.2,0.04330966]
[1737666714129,0.7976,3242.0,3241.1,0.04337066]
[1737666714365,0.7976,3242.0,3241.3,0.04324867]
[1737666714569,0.7976,3242.0,3241.2,0.04332944]
[1737666714773,0.7976,3242.0,3241.4,0.04320745]
[1737666714927,0.7976,3242.0,3241.3,0.04355459]
[1737666715133,0.7976,3242.0,3241.5,0.04352705]
[1737666715332,0.7976,3242.0,3241.4,0.04395877]
[1737666715532,0.7976,3242.0,3241.6,0.04383675]
[1737666715759,0.7976,3242.0,3240.6,3.0]
[1737666715981,0.7976,3242.0,3240.7,3.10202562]
[1737666716163,0.7976,3242.0,3240.8,3.0]
[1737666716469,0.7976,3242.0,3240.9,0.04426386]
[1737666716470,2.0203086,3241.6,3240.9,0.04426386]
[1737666716769,0.7629,3241.2,3240.3,2.22]
[1737666716973,0.7629,3241.2,3241.0,0.04409797]
[1737666717137,0.7629,3241.2,3240.3,2.22]
[1737666717472,1.36735271,3241.2,3240.4,0.04457927]
[1737666717772,1.11526613,3241.1,3239.2,0.7856]
[1737666717972,0.7765,3240.9,3239.3,0.60846307]
[1737666718268,0.7765,3240.9,3239.5,3.0]
[1737666718469,0.7765,3240.9,3239.5,6.08687]
[1737666718773,0.7765,3240.9,3239.3,3.69552307]
[1737666718774,0.7765,3240.9,3240.1,0.55]
[1737666718941,0.7765,3240.9,3239.7,3.08662]
[1737666719131,0.7765,3240.9,3240.2,0.04553104]
[1737666719472,0.7765,3240.9,3240.3,0.04546999]
[1737666719772,0.7765,3240.9,3239.9,3.0]
[1737666719938,0.7765,3240.9,3240.4,0.04540895]
[1737666720137,0.7765,3240.9,3239.9,3.0]
[1737666720334,0.7765,3240.9,3240.5,0.04541506]
[1737666720560,0.7765,3240.9,3239.2,1.39845996]
[1737666720762,0.7765,3240.9,3240.6,0.04526755]
[1737666721106,2.0203086,3241.6,3239.7,3.0]
[1737666721254,2.0203086,3241.6,3240.7,0.04520651]
[1737666721600,2.0203086,3241.9,3239.8,0.85]
[1737666721738,0.15684353,3242.1,3239.4,3.0]
[1737666721739,0.15684353,3242.1,3240.8,0.04514548]
[1737666722046,2.0203086,3241.9,3241.0,3.0]
[1737666722371,0.28056086,3242.6,3240.9,35.0]
[1737666722372,2.0203086,3241.6,3240.9,0.04540784]
[1737666722575,2.0203086,3241.6,3241.1,0.04491501]
[1737666722883,2.0203086,3241.3,3239.5,0.61490989]
[1737666723033,0.61438605,3241.8,3239.2,0.55]
[1737666723034,2.0203086,3240.9,3239.2,0.55]
[1737666723477,2.0203086,3240.9,3239.1,3.7652]
[1737666723633,2.0203086,3240.9,3239.2,3.08717]
[1737666724303,0.7521,3240.8,3239.2,3.08717]
[1737666724527,0.7521,3240.8,3239.2,3.63713]
[1737666724689,0.7521,3240.8,3239.3,0.440233]
[1737666725013,1.37663714,3240.8,3239.5,3.62817822]
[1737666725170,1.37663714,3240.8,3239.3,3.440233]
[1737666725698,1.37663714,3240.8,3239.5,3.0]
[1737666727208,0.7521,3240.8,3239.7,3.0867]
[1737666727395,0.7521,3240.8,3240.2,3.0]
[1737666727566,0.7521,3240.8,3239.8,0.30867]
[1737666727763,0.7521,3240.8,3239.9,35.0]
[1737666727974,0.7521,3240.8,3240.0,3.0]
[1737666728179,0.7521,3240.8,3239.8,0.30867]
[1737666728378,0.7521,3240.8,3239.9,0.330867]
[1737666728631,0.7521,3240.8,3239.5,0.8312]
[1737666728779,0.8069,3240.5,3239.0,0.8312]
[1737666728978,0.8069,3240.2,3238.6,38.0522]
[1737666729192,2.0203086,3239.7,3238.6,2.221]
[1737666729392,0.8069,3239.9,3238.6,2.221]
[1737666729601,2.0203086,3239.4,3238.6,2.221]
[1737666729908,2.0203086,3239.1,3238.6,2.221]
[1737666730225,0.8069,3239.3,3238.5,3.0]
[1737666730568,0.8069,3239.3,3238.4,3.19548458]
[1737666730813,0.8069,3239.3,3238.5,3.0]
[1737666731026,0.8069,3239.3,3238.5,3.04590137]
[1737666731313,0.8069,3239.3,3238.5,0.04590137]
[1737666731631,0.8069,3239.3,3238.5,3.04590137]
[1737666731789,0.8069,3239.3,3238.5,0.04590137]
[1737666731989,0.8069,3239.3,3238.5,3.04590137]
[1737666732205,0.8069,3239.3,3238.6,0.6241386]
[1737666732379,0.8069,3239.3,3238.5,0.04590137]
[1737666732587,0.8069,3239.3,3238.7,0.04622444]
[1737666732806,0.8069,3239.3,3238.3,3.0]
[1737666733006,0.8069,3239.3,3238.1,3.55]
[1737666733207,0.8069,3239.3,3238.2,0.0458285]
[1737666733413,0.8069,3239.3,3238.5,3.0]
[1737666733801,0.8069,3239.3,3238.6,0.04584336]
[1737666733983,0.8069,3239.3,3238.8,3.0]
[1737666734186,0.7572,3239.7,3238.8,3.0]
[1737666734380,0.7572,3239.7,3238.9,0.04582637]
[1737666734696,0.7572,3239.7,3238.5,0.55]
[1737666734880,2.0203086,3239.4,3239.0,0.04574548]
[1737666735219,0.8049,3239.3,3238.0,0.62824155]
[1737666735520,0.8049,3239.3,3238.1,35.04629549]
[1737666735693,2.0203086,3239.1,3238.1,0.04629549]
[1737666735893,0.8326,3239.0,3237.4,0.8285]
[1737666736093,0.8326,3239.0,3238.2,0.04623436]
[1737666736293,0.8326,3239.0,3238.3,0.31344544]
[1737666736494,0.8326,3239.0,3238.3,0.04617324]
[1737666736700,0.8326,3239.0,3237.8,3.08843]
[1737666736897,0.8326,3239.0,3238.4,0.04611212]
[1737666737096,0.8326,3239.0,3237.9,3.0]
[1737666737299,0.8326,3239.0,3238.5,0.04596793]
[1737666737526,0.8326,3239.0,3238.2,3.0]
[1737666737686,0.8326,3239.0,3238.6,0.04590682]
[1737666737891,0.8326,3239.0,3238.3,0.608822]
[1737666738112,0.8326,3239.0,3238.7,0.04584572]
[1737666738318,0.8326,3239.0,3238.0,6.63829]
[1737666738500,0.8326,3239.0,3238.8,0.04578461]
[1737666738711,0.8326,3239.0,3238.0,6.63829]
[1737666738911,0.8326,3239.0,3238.9,0.04572351]
[1737666739230,0.8326,3239.0,3238.1,0.972664]
[1737666739598,0.8326,3239.6,3238.5,3.0]
[1737666739832,0.8326,3239.6,3238.8,3.08751]
[1737666740000,0.8326,3240.0,3239.1,3.08727]
[1737666740206,0.8326,3240.0,3239.2,0.363727]
[1737666740498,0.25,3241.7,3239.2,0.363727]
[1737666740499,0.8326,3240.5,3239.3,6.087]
[1737666740705,0.8326,3240.5,3239.5,3.0]
[1737666740900,0.8326,3240.5,3239.4,3.08697]
[1737666740901,0.8326,3240.5,3239.4,3.04497651]
[1737666741115,0.8326,3240.5,3239.6,0.04485438]
[1737666741329,0.8326,3240.5,3239.6,0.30448544]
[1737666741487,0.8326,3240.8,3239.8,0.55]
[1737666741688,0.8326,3240.8,3239.7,0.04479333]
[1737666741917,0.8326,3240.8,3239.6,0.30448544]
[1737666741918,0.8326,3240.8,3239.9,0.04353645]
[1737666742194,0.8326,3240.8,3239.6,3.30448544]
[1737666742503,0.8326,3240.8,3239.8,3.0]
[1737666743130,0.8326,3240.8,3239.9,0.04336137]
[1737666743328,0.8326,3240.8,3240.2,3.08621]
[1737666743535,0.8326,3241.8,3241.0,3.0]
[1737666744026,0.8326,3241.8,3241.3,3.0]
[1737666744198,0.8326,3242.3,3241.4,1.158522]
[1737666744531,0.8326,3242.3,3241.4,1.20146182]
[1737666745232,2.0203086,3242.1,3241.4,0.04293982]
[1737666745597,0.8326,3242.3,3241.1,0.21586753]
[1737666745994,0.8326,3242.3,3241.2,0.04274316]
[1737666746230,0.8326,3242.3,3241.2,0.25861069]
[1737666746750,2.0203086,3242.2,3241.2,0.25861069]
[1737666747053,0.8323,3242.1,3241.2,0.25861069]
[1737666747259,0.8323,3242.1,3241.2,0.21586753]
[1737666747420,2.0203086,3241.6,3241.2,0.21586753]
[1737666747620,0.8323,3241.2,3239.6,1.11248544]
[1737666747827,1.11756086,3241.2,3239.7,0.04210261]
[1737666748458,1.11756086,3241.2,3239.8,0.55]
[1737666748633,1.11756086,3241.2,3239.8,0.04222974]
[1737666748956,0.8323,3240.6,3239.8,0.04222974]
[1737666749158,2.0203086,3240.4,3239.8,0.04222974]
[1737666749325,0.8323,3240.3,3239.0,3.19459447]
[1737666749519,0.8323,3240.3,3239.9,0.04234619]
[1737666749720,0.8323,3240.3,3239.0,3.19459447]
[1737666749721,0.8323,3240.3,3239.1,3.55]
[1737666749926,0.8323,3240.3,3240.0,0.04246754]
[1737666750266,0.8323,3240.3,3240.1,0.04270923]
[1737666750421,0.8323,3240.3,3239.3,0.55]
[1737666750617,0.8323,3240.3,3239.4,0.40685163]
[1737666750851,0.8323,3240.3,3239.6,3.0]
[1737666751522,0.8323,3240.3,3239.7,0.04295344]
[1737666751931,0.8323,3240.3,3239.7,0.45891604]
[1737666753624,0.8323,3240.3,3238.6,0.45891604]
[1737666753962,0.98930763,3240.3,3238.7,0.04158219]